[Event "*** Titled Tuesday Blitz"]
[Site "Chess.com"]
[Date "2018.10.02"]
[Round "3"]
[White "grzechu96"]
[Black "mishanick"]
[Result "0-1"]
[WhiteElo "2486"]
[BlackElo "2858"]
[TimeControl "180+2"]
[EndTime "13:35:05 PDT"]
[Termination "mishanick won by resignation"]

1. e4 {[%clk 0:03:01.9]} 1... c5 {[%clk 0:02:58.7]} 2. Nc3 {[%clk 0:02:49.9]}
2... d6 {[%clk 0:02:59.3]} 3. d4 {[%clk 0:02:50.8]} 3... cxd4 {[%clk 0:03:01.2]}
4. Qxd4 {[%clk 0:02:52.5]} 4... Nc6 {[%clk 0:02:59.8]} 5. Qd2 {[%clk 0:02:53.2]}
5... g6 {[%clk 0:03:01.2]} 6. b3 {[%clk 0:02:54.1]} 6... Bh6 {[%clk 0:03:01.3]}
7. f4 {[%clk 0:02:55]} 7... Nf6 {[%clk 0:03:02.9]} 8. Bb2 {[%clk 0:02:53.8]}
8... a5 {[%clk 0:03:04.5]} 9. O-O-O {[%clk 0:02:49.6]} 9... a4 {[%clk
0:03:05.2]} 10. Nxa4 {[%clk 0:02:50.4]} 10... e5 {[%clk 0:02:39.6]} 11. g3
{[%clk 0:02:20.8]} 11... Nxe4 {[%clk 0:02:39.6]} 12. Qe3 {[%clk 0:02:14.3]}
12... Rxa4 {[%clk 0:02:18.4]} 13. bxa4 {[%clk 0:02:13.6]} 13... Nc5 {[%clk
0:02:19.8]} 14. Bb5 {[%clk 0:01:24.3]} 14... O-O {[%clk 0:02:19.2]} 15. Bxc6
{[%clk 0:01:00.8]} 15... bxc6 {[%clk 0:02:21.1]} 16. Bxe5 {[%clk 0:00:46.7]}
16... Nxa4 {[%clk 0:01:33.2]} 17. Rxd6 {[%clk 0:00:43.6]} 17... Qa5 {[%clk
0:01:33.1]} 18. Nf3 {[%clk 0:00:43.5]} 18... Re8 {[%clk 0:01:18]} 19. Rhd1
{[%clk 0:00:19.7]} 19... Bf8 {[%clk 0:01:18.5]} 20. R6d4 {[%clk 0:00:06.7]}
20... Nb6 {[%clk 0:01:07.7]} 21. R4d3 {[%clk 0:00:04.5]} 21... Nc4 {[%clk
0:01:06.4]} 22. Qd4 {[%clk 0:00:02.5]} 22... Ba3+ {[%clk 0:01:06.1]} 23. Rxa3
{[%clk 0:00:03.6]} 23... Qxa3+ {[%clk 0:01:06.7]} 24. Kb1 {[%clk 0:00:05.3]}
24... Be6 {[%clk 0:01:06.9]} 25. Qc3 {[%clk 0:00:06.1]} 25... Rb8+ {[%clk
0:00:28]} 26. Ka1 {[%clk 0:00:06.7]} 26... Ne3 {[%clk 0:00:29.4]} 27. Rd8+
{[%clk 0:00:05.4]} 27... Rxd8 {[%clk 0:00:30.2]} 28. Qxa3 {[%clk 0:00:06.8]}
28... Nxc2+ {[%clk 0:00:30.7]} 29. Kb2 {[%clk 0:00:08.7]} 29... Nxa3 {[%clk
0:00:32.4]} 30. Kxa3 {[%clk 0:00:10.6]} 30... Ra8+ {[%clk 0:00:33.8]} 31. Kb4
{[%clk 0:00:12.1]} 31... Rxa2 {[%clk 0:00:35.2]} 32. Kc5 {[%clk 0:00:12.4]}
32... Bd5 {[%clk 0:00:36]} 33. Ng5 {[%clk 0:00:12.5]} 33... Rxh2 {[%clk
0:00:37]} 0-1

[Event "*** Titled Tuesday Blitz"]
[Site "Chess.com"]
[Date "2018.10.02"]
[Round "3"]
[White "nOcHeaTiNgKiD"]
[Black "Tjktiger"]
[Result "0-1"]
[WhiteElo "2436"]
[BlackElo "2703"]
[TimeControl "180+2"]
[EndTime "13:35:37 PDT"]
[Termination "Tjktiger won by resignation"]

1. Nf3 {[%clk 0:03:01.9]} 1... d6 {[%clk 0:03:00.6]} 2. d4 {[%clk 0:03:02.1]}
2... Nd7 {[%clk 0:02:58.9]} 3. e4 {[%clk 0:03:02.4]} 3... Ngf6 {[%clk 0:03:00]}
4. Bd3 {[%clk 0:03:00.7]} 4... e5 {[%clk 0:03:01.2]} 5. c3 {[%clk 0:03:01.9]}
5... d5 {[%clk 0:03:01.9]} 6. Nbd2 {[%clk 0:02:53.8]} 6... exd4 {[%clk
0:02:56.9]} 7. Nxd4 {[%clk 0:02:48.8]} 7... Nc5 {[%clk 0:02:58]} 8. Bc2 {[%clk
0:02:45.7]} 8... dxe4 {[%clk 0:02:56.4]} 9. Qe2 {[%clk 0:02:40.8]} 9... Be7
{[%clk 0:02:45.8]} 10. Nxe4 {[%clk 0:02:35.2]} 10... Ncxe4 {[%clk 0:02:45.4]}
11. Bxe4 {[%clk 0:02:36.1]} 11... Nxe4 {[%clk 0:02:43.9]} 12. Qxe4 {[%clk
0:02:38]} 12... O-O {[%clk 0:02:45.3]} 13. O-O {[%clk 0:02:38.3]} 13... Bf6
{[%clk 0:01:50.7]} 14. Be3 {[%clk 0:02:31.4]} 14... Re8 {[%clk 0:01:50.6]} 15.
Qf3 {[%clk 0:02:31.2]} 15... c6 {[%clk 0:01:41.6]} 16. Rad1 {[%clk 0:02:29.5]}
16... Qc7 {[%clk 0:01:36.3]} 17. Nf5 {[%clk 0:02:21.4]} 17... Be6 {[%clk
0:01:12.5]} 18. a3 {[%clk 0:02:05.9]} 18... Rad8 {[%clk 0:01:06.9]} 19. Bd4
{[%clk 0:01:37.8]} 19... Bxd4 {[%clk 0:00:35.6]} 20. Nxd4 {[%clk 0:01:32.7]}
20... Bd5 {[%clk 0:00:36.3]} 21. Qh5 {[%clk 0:01:06.3]} 21... g6 {[%clk
0:00:36.6]} 22. Qh6 {[%clk 0:01:03.5]} 22... Re5 {[%clk 0:00:37.6]} 23. Qf4
{[%clk 0:00:59.6]} 23... Rde8 {[%clk 0:00:36.3]} 24. h3 {[%clk 0:00:43.5]} 24...
Qe7 {[%clk 0:00:33.4]} 25. Rc1 {[%clk 0:00:28.4]} 25... Re4 {[%clk 0:00:33.6]}
26. Qd2 {[%clk 0:00:27]} 26... Qf6 {[%clk 0:00:32.2]} 27. Rfe1 {[%clk
0:00:24.8]} 27... Qe5 {[%clk 0:00:21.6]} 28. Rxe4 {[%clk 0:00:25.3]} 28... Qxe4
{[%clk 0:00:23.5]} 29. Nf3 {[%clk 0:00:23]} 29... Qf5 {[%clk 0:00:20.7]} 30. Nd4
{[%clk 0:00:23.1]} 30... Qe5 {[%clk 0:00:19]} 31. c4 {[%clk 0:00:14.1]} 31...
Be4 {[%clk 0:00:17.3]} 32. Qe3 {[%clk 0:00:14.2]} 32... c5 {[%clk 0:00:15.8]}
33. Nb5 {[%clk 0:00:11.1]} 33... Qxb2 {[%clk 0:00:14.6]} 34. Re1 {[%clk
0:00:12.2]} 34... Bc6 {[%clk 0:00:15.5]} 35. Qc1 {[%clk 0:00:08]} 35... Rxe1+
{[%clk 0:00:16.6]} 36. Qxe1 {[%clk 0:00:08.8]} 36... Bxb5 {[%clk 0:00:18.3]} 37.
cxb5 {[%clk 0:00:08.6]} 37... Qxb5 {[%clk 0:00:20.2]} 38. Qe8+ {[%clk
0:00:09.5]} 0-1

[Event "*** Titled Tuesday Blitz"]
[Site "Chess.com"]
[Date "2018.10.02"]
[Round "3"]
[White "StoreySniper"]
[Black "51616516516"]
[Result "1-0"]
[WhiteElo "2425"]
[BlackElo "2289"]
[TimeControl "180+2"]
[EndTime "13:35:52 PDT"]
[Termination "StoreySniper won by resignation"]

1. c4 {[%clk 0:03:01.9]} 1... Nf6 {[%clk 0:03:00.1]} 2. g3 {[%clk 0:03:02.1]}
2... g6 {[%clk 0:03:00.6]} 3. Bg2 {[%clk 0:03:03.6]} 3... Bg7 {[%clk 0:03:02.4]}
4. Nc3 {[%clk 0:03:05]} 4... d6 {[%clk 0:03:03.6]} 5. h4 {[%clk 0:03:04.1]} 5...
h5 {[%clk 0:03:04.2]} 6. d3 {[%clk 0:03:05.3]} 6... O-O {[%clk 0:03:04.9]} 7.
Nh3 {[%clk 0:03:06.5]} 7... Nc6 {[%clk 0:03:04.3]} 8. Ng5 {[%clk 0:03:07.3]}
8... e5 {[%clk 0:03:04.7]} 9. Nd5 {[%clk 0:03:06.6]} 9... Ne7 {[%clk 0:02:56]}
10. Nxf6+ {[%clk 0:03:05.7]} 10... Bxf6 {[%clk 0:02:56.6]} 11. Ne4 {[%clk
0:03:05.5]} 11... Bg7 {[%clk 0:02:57.4]} 12. Bg5 {[%clk 0:03:06.2]} 12... f6
{[%clk 0:02:56.7]} 13. Bd2 {[%clk 0:03:06.5]} 13... Be6 {[%clk 0:02:46.6]} 14.
Bb4 {[%clk 0:02:53.1]} 14... Re8 {[%clk 0:02:11.4]} 15. Qa4 {[%clk 0:02:46.1]}
15... d5 {[%clk 0:02:00.7]} 16. Bxe7 {[%clk 0:02:43.7]} 16... Rxe7 {[%clk
0:02:01.2]} 17. cxd5 {[%clk 0:02:45]} 17... Bxd5 {[%clk 0:02:01.3]} 18. O-O
{[%clk 0:02:34.6]} 18... c5 {[%clk 0:01:39.5]} 19. Rac1 {[%clk 0:02:24.1]} 19...
b6 {[%clk 0:01:39.4]} 20. a3 {[%clk 0:02:24.4]} 20... Qd7 {[%clk 0:01:34.8]} 21.
Qxd7 {[%clk 0:02:21.3]} 21... Rxd7 {[%clk 0:01:35.6]} 22. b4 {[%clk 0:02:22.4]}
22... cxb4 {[%clk 0:01:33.9]} 23. axb4 {[%clk 0:02:23.2]} 23... Kf7 {[%clk
0:01:21.6]} 24. Rc2 {[%clk 0:02:17.3]} 24... Bh6 {[%clk 0:01:15]} 25. Ra1 {[%clk
0:02:09.9]} 25... f5 {[%clk 0:01:00.1]} 26. Ng5+ {[%clk 0:01:57]} 26... Bxg5
{[%clk 0:01:01]} 27. Bxd5+ {[%clk 0:01:57.5]} 27... Rxd5 {[%clk 0:01:02]} 28.
hxg5 {[%clk 0:01:56.7]} 28... a5 {[%clk 0:00:58.2]} 29. Rc7+ {[%clk 0:01:54.8]}
29... Kf8 {[%clk 0:00:33.4]} 30. Rc6 {[%clk 0:01:51.4]} 30... Rb5 {[%clk
0:00:34.3]} 31. bxa5 {[%clk 0:01:48.3]} 31... bxa5 {[%clk 0:00:30.7]} 32. Rxg6
{[%clk 0:01:48.1]} 32... a4 {[%clk 0:00:31.6]} 33. Rf6+ {[%clk 0:01:49.2]} 33...
Ke7 {[%clk 0:00:32.5]} 34. Rxf5 {[%clk 0:01:49.3]} 34... a3 {[%clk 0:00:33.7]}
35. f4 {[%clk 0:01:46.5]} 35... Ke6 {[%clk 0:00:30.7]} 36. Rxe5+ {[%clk
0:01:47]} 36... Rxe5 {[%clk 0:00:31.6]} 37. fxe5 {[%clk 0:01:48.6]} 37... Kxe5
{[%clk 0:00:33.5]} 38. e3 {[%clk 0:01:44.8]} 38... Kf5 {[%clk 0:00:34.1]} 39.
Kf2 {[%clk 0:01:44.3]} 39... Kxg5 {[%clk 0:00:35]} 40. Kf3 {[%clk 0:01:43.3]}
40... Kf5 {[%clk 0:00:35.4]} 41. e4+ {[%clk 0:01:44.4]} 41... Ke5 {[%clk
0:00:34.3]} 42. Ke3 {[%clk 0:01:46.3]} 42... Ra4 {[%clk 0:00:34.7]} 43. Ra2
{[%clk 0:01:44.6]} 43... Kf6 {[%clk 0:00:20.9]} 44. d4 {[%clk 0:01:43.7]} 44...
Kg5 {[%clk 0:00:21.8]} 45. d5 {[%clk 0:01:43.1]} 45... Kg4 {[%clk 0:00:21.9]}
46. d6 {[%clk 0:01:41.9]} 46... Kxg3 {[%clk 0:00:20.4]} 47. e5 {[%clk
0:01:36.8]} 47... h4 {[%clk 0:00:15.8]} 48. d7 {[%clk 0:01:35.7]} 48... Ra8
{[%clk 0:00:14.5]} 49. e6 {[%clk 0:01:36.8]} 49... h3 {[%clk 0:00:12.5]} 50. e7
{[%clk 0:01:37.2]} 50... h2 {[%clk 0:00:13.5]} 51. Rxh2 {[%clk 0:01:34.9]} 51...
Kxh2 {[%clk 0:00:13.6]} 52. e8=Q {[%clk 0:01:36]} 52... a2 {[%clk 0:00:12.3]}
53. Qxa8 {[%clk 0:01:33]} 1-0

[Event "*** Titled Tuesday Blitz"]
[Site "Chess.com"]
[Date "2018.10.02"]
[Round "3"]
[White "AliKa2810"]
[Black "David_Paravyan"]
[Result "1/2-1/2"]
[WhiteElo "2483"]
[BlackElo "2808"]
[TimeControl "180+2"]
[EndTime "13:35:54 PDT"]
[Termination "Game drawn by agreement"]

1. e4 {[%clk 0:03:01.9]} 1... c5 {[%clk 0:02:56.6]} 2. Nf3 {[%clk 0:03:02.5]}
2... e6 {[%clk 0:02:57.7]} 3. d4 {[%clk 0:03:03.3]} 3... cxd4 {[%clk 0:02:59.6]}
4. Nxd4 {[%clk 0:03:04.5]} 4... Na6 {[%clk 0:02:59.3]} 5. Nc3 {[%clk 0:02:54.9]}
5... Nc7 {[%clk 0:02:58.3]} 6. Be2 {[%clk 0:02:53.8]} 6... d6 {[%clk 0:02:58.4]}
7. O-O {[%clk 0:02:54.4]} 7... Nf6 {[%clk 0:02:59.1]} 8. f4 {[%clk 0:02:55.9]}
8... Be7 {[%clk 0:02:57.6]} 9. Kh1 {[%clk 0:02:21.7]} 9... O-O {[%clk
0:02:56.3]} 10. Be3 {[%clk 0:02:21.6]} 10... Bd7 {[%clk 0:02:44.2]} 11. a4
{[%clk 0:02:20.4]} 11... Rc8 {[%clk 0:02:38.6]} 12. Bd3 {[%clk 0:02:19.3]} 12...
e5 {[%clk 0:02:35.6]} 13. fxe5 {[%clk 0:02:00.3]} 13... Ng4 {[%clk 0:02:36.5]}
14. Bg1 {[%clk 0:01:19.6]} 14... Nxe5 {[%clk 0:02:34.8]} 15. Nf5 {[%clk
0:01:08.7]} 15... Bxf5 {[%clk 0:02:35.6]} 16. exf5 {[%clk 0:01:07.6]} 16... d5
{[%clk 0:02:01.4]} 17. Bd4 {[%clk 0:01:01.8]} 17... Bf6 {[%clk 0:01:59.2]} 18.
Bxa7 {[%clk 0:00:56.6]} 18... Re8 {[%clk 0:01:45.5]} 19. Bb6 {[%clk 0:00:48.9]}
19... Nxd3 {[%clk 0:01:15.9]} 20. Qxd3 {[%clk 0:00:49.1]} 20... Bxc3 {[%clk
0:01:15.7]} 21. Qxc3 {[%clk 0:00:48.6]} 21... Qd6 {[%clk 0:01:13.8]} 22. Bxc7
{[%clk 0:00:45.4]} 22... Rxc7 {[%clk 0:01:15.7]} 23. Qd3 {[%clk 0:00:47]} 23...
Re5 {[%clk 0:01:07.2]} 24. Rae1 {[%clk 0:00:46.8]} 24... Rce7 {[%clk 0:01:05.9]}
25. Rxe5 {[%clk 0:00:47.8]} 25... Qxe5 {[%clk 0:01:01.3]} 26. h3 {[%clk
0:00:49.2]} 26... h6 {[%clk 0:00:56.9]} 27. Rd1 {[%clk 0:00:49.8]} 27... Qxb2
{[%clk 0:00:55.9]} 28. Qxd5 {[%clk 0:00:48.9]} 28... Qxc2 {[%clk 0:00:50.3]} 29.
Qd8+ {[%clk 0:00:25.6]} 29... Kh7 {[%clk 0:00:50.7]} 30. Qxe7 {[%clk 0:00:23.5]}
30... Qxd1+ {[%clk 0:00:51.6]} 31. Kh2 {[%clk 0:00:25.1]} 31... Qxa4 {[%clk
0:00:30.4]} 32. Qxf7 {[%clk 0:00:24.1]} 32... Qc6 {[%clk 0:00:31.2]} 33. f6
{[%clk 0:00:22.5]} 33... Qxf6 {[%clk 0:00:27.1]} 34. Qxb7 {[%clk 0:00:23.3]}
34... Qf4+ {[%clk 0:00:28]} 35. Kg1 {[%clk 0:00:23.6]} 35... h5 {[%clk
0:00:28.9]} 36. Qb1+ {[%clk 0:00:23.4]} 36... Kh6 {[%clk 0:00:29.6]} 37. Qb6+
{[%clk 0:00:24.1]} 37... g6 {[%clk 0:00:30.8]} 38. Qe6 {[%clk 0:00:25.5]} 38...
Qd4+ {[%clk 0:00:30.4]} 39. Kh2 {[%clk 0:00:25.6]} 39... Qc5 {[%clk 0:00:31.3]}
40. Qf6 {[%clk 0:00:25.6]} 40... Qc8 {[%clk 0:00:31.4]} 41. Qf4+ {[%clk
0:00:26.3]} 41... Kg7 {[%clk 0:00:32]} 42. Qe5+ {[%clk 0:00:27.6]} 42... Kh7
{[%clk 0:00:32.9]} 43. Qe7+ {[%clk 0:00:28.3]} 1/2-1/2

[Event "*** Titled Tuesday Blitz"]
[Site "Chess.com"]
[Date "2018.10.02"]
[Round "3"]
[White "Sanan_Sjugirov"]
[Black "HouseOfDurin"]
[Result "1-0"]
[WhiteElo "2804"]
[BlackElo "1810"]
[TimeControl "180+2"]
[EndTime "13:35:55 PDT"]
[Termination "Sanan_Sjugirov won by resignation"]

1. d4 {[%clk 0:03:01.9]} 1... Nf6 {[%clk 0:02:59.3]} 2. c4 {[%clk 0:03:02.6]}
2... c5 {[%clk 0:03:00.2]} 3. d5 {[%clk 0:03:02.8]} 3... b5 {[%clk 0:03:01.8]}
4. cxb5 {[%clk 0:03:03.5]} 4... a6 {[%clk 0:03:03.2]} 5. e3 {[%clk 0:03:04.8]}
5... axb5 {[%clk 0:03:03.4]} 6. Bxb5 {[%clk 0:03:06]} 6... Bb7 {[%clk
0:02:53.4]} 7. Nc3 {[%clk 0:03:06.6]} 7... Qb6 {[%clk 0:02:21.9]} 8. Nf3 {[%clk
0:02:54.8]} 8... e6 {[%clk 0:02:03.8]} 9. dxe6 {[%clk 0:02:42.1]} 9... fxe6
{[%clk 0:02:05.7]} 10. O-O {[%clk 0:02:42.5]} 10... Be7 {[%clk 0:01:59]} 11. a4
{[%clk 0:02:42.7]} 11... O-O {[%clk 0:01:53.3]} 12. Bd2 {[%clk 0:02:34.2]} 12...
Nc6 {[%clk 0:01:31.8]} 13. e4 {[%clk 0:02:26.6]} 13... Nd4 {[%clk 0:01:23.9]}
14. a5 {[%clk 0:02:23.3]} 14... Nxf3+ {[%clk 0:01:22.8]} 15. Qxf3 {[%clk
0:02:22.9]} 15... Qc7 {[%clk 0:00:50.2]} 16. Qe2 {[%clk 0:02:15.8]} 16... Bc6
{[%clk 0:00:36.1]} 17. Bxc6 {[%clk 0:02:15.3]} 17... Qxc6 {[%clk 0:00:38]} 18.
a6 {[%clk 0:02:13.1]} 18... Rfb8 {[%clk 0:00:39.2]} 19. Ra2 {[%clk 0:02:06.3]}
19... Rb4 {[%clk 0:00:35.3]} 20. f3 {[%clk 0:02:00.3]} 20... Rb6 {[%clk
0:00:26.5]} 21. Rfa1 {[%clk 0:02:00.8]} 21... c4 {[%clk 0:00:27.6]} 22. Be3
{[%clk 0:02:01.7]} 22... Bc5 {[%clk 0:00:27.3]} 23. a7 {[%clk 0:01:57.9]} 23...
Rb7 {[%clk 0:00:25.7]} 24. Kh1 {[%clk 0:01:53.7]} 24... d5 {[%clk 0:00:16.4]}
25. exd5 {[%clk 0:01:53.9]} 25... exd5 {[%clk 0:00:15.9]} 26. Bxc5 {[%clk
0:01:54.9]} 26... Qxc5 {[%clk 0:00:16.7]} 27. Qe6+ {[%clk 0:01:55.7]} 27... Kh8
{[%clk 0:00:16.2]} 28. Ra5 {[%clk 0:01:50]} 28... Qc7 {[%clk 0:00:10.9]} 29.
Nxd5 {[%clk 0:01:42.2]} 29... Nxd5 {[%clk 0:00:12.8]} 30. Qxd5 {[%clk
0:01:43.1]} 30... h6 {[%clk 0:00:13.6]} 31. Qd4 {[%clk 0:01:36.4]} 31... Qb6
{[%clk 0:00:09.8]} 32. Qxb6 {[%clk 0:01:34.9]} 32... Rxb6 {[%clk 0:00:11.7]} 33.
Rc5 {[%clk 0:01:33.8]} 33... Rxb2 {[%clk 0:00:10.8]} 34. h4 {[%clk 0:01:23]}
34... Rb7 {[%clk 0:00:08.1]} 35. Rxc4 {[%clk 0:01:16.6]} 35... Rbxa7 {[%clk
0:00:09]} 36. Rxa7 {[%clk 0:01:16.7]} 36... Rxa7 {[%clk 0:00:10.9]} 37. h5
{[%clk 0:01:15.4]} 37... Kh7 {[%clk 0:00:12.3]} 38. Rc5 {[%clk 0:01:16.5]} 38...
g6 {[%clk 0:00:12.3]} 39. hxg6+ {[%clk 0:01:17.2]} 39... Kxg6 {[%clk 0:00:14.2]}
40. Kh2 {[%clk 0:01:18.5]} 40... Rf7 {[%clk 0:00:15]} 41. Kg3 {[%clk 0:01:19.6]}
41... Rf6 {[%clk 0:00:16.4]} 42. Kg4 {[%clk 0:01:20.9]} 42... Ra6 {[%clk
0:00:17.1]} 43. g3 {[%clk 0:01:21.1]} 43... Ra4+ {[%clk 0:00:17.7]} 44. f4
{[%clk 0:01:22.5]} 44... Ra6 {[%clk 0:00:18.8]} 45. Rd5 {[%clk 0:01:23.3]} 45...
Rf6 {[%clk 0:00:18.8]} 46. f5+ {[%clk 0:01:22.5]} 46... Kf7 {[%clk 0:00:05.9]}
47. Kh5 {[%clk 0:01:23.3]} 47... Rb6 {[%clk 0:00:02.8]} 48. g4 {[%clk
0:01:23.5]} 48... Kg7 {[%clk 0:00:02.8]} 49. Rd7+ {[%clk 0:01:24.1]} 49... Kg8
{[%clk 0:00:02.1]} 50. Re7 {[%clk 0:01:25.1]} 50... Kf8 {[%clk 0:00:02.8]} 51.
Re6 {[%clk 0:01:24.6]} 51... Rxe6 {[%clk 0:00:02.7]} 52. fxe6 {[%clk 0:01:26.5]}
52... Ke7 {[%clk 0:00:03.4]} 53. Kxh6 {[%clk 0:01:27.8]} 53... Kxe6 {[%clk
0:00:05.3]} 54. g5 {[%clk 0:01:27.7]} 54... Kf7 {[%clk 0:00:07.2]} 55. Kh7
{[%clk 0:01:29]} 55... Ke6 {[%clk 0:00:07.5]} 56. g6 {[%clk 0:01:30.3]} 1-0

[Event "*** Titled Tuesday Blitz"]
[Site "Chess.com"]
[Date "2018.10.02"]
[Round "3"]
[White "MITerryble"]
[Black "Fins0905"]
[Result "1-0"]
[WhiteElo "2778"]
[BlackElo "2569"]
[TimeControl "180+2"]
[EndTime "13:35:57 PDT"]
[Termination "MITerryble won by resignation"]

1. d4 {[%clk 0:03:01.9]} 1... d5 {[%clk 0:03:00.2]} 2. Nf3 {[%clk 0:03:02.5]}
2... Nf6 {[%clk 0:03:01.2]} 3. c4 {[%clk 0:03:03.3]} 3... c6 {[%clk 0:03:02]} 4.
Nc3 {[%clk 0:03:04.2]} 4... dxc4 {[%clk 0:03:02.8]} 5. a4 {[%clk 0:03:05.2]}
5... Bf5 {[%clk 0:03:02.9]} 6. Ne5 {[%clk 0:03:06.4]} 6... e6 {[%clk 0:03:02.9]}
7. f3 {[%clk 0:03:07.4]} 7... Bb4 {[%clk 0:03:03.7]} 8. Nxc4 {[%clk 0:03:08.5]}
8... c5 {[%clk 0:02:55.6]} 9. dxc5 {[%clk 0:03:08.8]} 9... Qxd1+ {[%clk
0:02:55]} 10. Kxd1 {[%clk 0:03:09.7]} 10... Bxc5 {[%clk 0:02:54.3]} 11. e4
{[%clk 0:03:09.3]} 11... Bg6 {[%clk 0:02:55.7]} 12. Nb5 {[%clk 0:03:10.3]} 12...
Na6 {[%clk 0:02:37.4]} 13. Ncd6+ {[%clk 0:02:51.6]} 13... Ke7 {[%clk 0:02:34.1]}
14. Nxb7 {[%clk 0:02:49.9]} 14... Bb4 {[%clk 0:01:53.2]} 15. Bf4 {[%clk
0:02:26.5]} 15... Nd7 {[%clk 0:01:19.3]} 16. Rc1 {[%clk 0:02:16.1]} 16... e5
{[%clk 0:01:11.4]} 17. Bd2 {[%clk 0:02:11]} 17... Rab8 {[%clk 0:00:59.9]} 18.
Na5 {[%clk 0:02:02]} 18... Bxa5 {[%clk 0:00:50.1]} 19. Bxa5 {[%clk 0:02:03.9]}
19... f5 {[%clk 0:00:43.5]} 20. Nxa7 {[%clk 0:01:54.7]} 20... Ra8 {[%clk
0:00:33.9]} 21. Nc6+ {[%clk 0:01:50.6]} 21... Kf6 {[%clk 0:00:35.1]} 22. exf5
{[%clk 0:01:42.2]} 22... Bxf5 {[%clk 0:00:35.5]} 23. b4 {[%clk 0:01:43.6]} 23...
Rhc8 {[%clk 0:00:25.9]} 24. Be2 {[%clk 0:01:35]} 24... Nac5 {[%clk 0:00:21.5]}
25. bxc5 {[%clk 0:01:11.6]} 25... Rxc6 {[%clk 0:00:22.3]} 26. Bb4 {[%clk
0:01:12.9]} 26... Be6 {[%clk 0:00:10.4]} 27. Bb5 {[%clk 0:01:12.6]} 27... Bb3+
{[%clk 0:00:10.8]} 28. Ke2 {[%clk 0:01:13.3]} 28... Bxa4 {[%clk 0:00:12.7]} 29.
Bxc6 {[%clk 0:01:14]} 29... Bxc6 {[%clk 0:00:13.9]} 30. Rhd1 {[%clk 0:01:13.9]}
30... Nb8 {[%clk 0:00:13.7]} 31. Ra1 {[%clk 0:01:11.5]} 31... Rxa1 {[%clk
0:00:11]} 32. Rxa1 {[%clk 0:01:12.2]} 32... Ke6 {[%clk 0:00:12.5]} 33. Rd1
{[%clk 0:01:12.4]} 33... Bd5 {[%clk 0:00:13.7]} 34. Kf2 {[%clk 0:01:12.7]} 34...
Nc6 {[%clk 0:00:14.8]} 35. Bc3 {[%clk 0:01:14]} 35... g5 {[%clk 0:00:16.3]} 36.
Ra1 {[%clk 0:01:07.9]} 36... Bc4 {[%clk 0:00:17.4]} 37. Rd1 {[%clk 0:01:08.6]}
37... Bd5 {[%clk 0:00:18.2]} 38. h3 {[%clk 0:01:10.1]} 38... h6 {[%clk
0:00:18.5]} 39. Bb2 {[%clk 0:01:09.9]} 39... Na5 {[%clk 0:00:19.1]} 40. Ra1
{[%clk 0:01:09.4]} 40... Nc6 {[%clk 0:00:18.1]} 41. Ra8 {[%clk 0:01:09.9]} 41...
Kf7 {[%clk 0:00:11.3]} 42. Rc8 {[%clk 0:01:07]} 42... Kg6 {[%clk 0:00:08.3]} 43.
Rc7 {[%clk 0:01:07.4]} 43... Kf6 {[%clk 0:00:06.8]} 44. Rd7 {[%clk 0:01:08.1]}
44... Nb4 {[%clk 0:00:03]} 45. Rd6+ {[%clk 0:01:00.5]} 45... Be6 {[%clk
0:00:04.1]} 46. c6 {[%clk 0:00:59.4]} 46... Ke7 {[%clk 0:00:03.9]} 47. Bxe5
{[%clk 0:01:00.4]} 47... Na6 {[%clk 0:00:03.4]} 48. Rd2 {[%clk 0:00:56]} 48...
Bf5 {[%clk 0:00:03.9]} 49. c7 {[%clk 0:00:57]} 1-0

[Event "*** Titled Tuesday Blitz"]
[Site "Chess.com"]
[Date "2018.10.02"]
[Round "3"]
[White "nearestway"]
[Black "Benek77"]
[Result "0-1"]
[WhiteElo "2532"]
[BlackElo "2620"]
[TimeControl "180+2"]
[EndTime "13:36:21 PDT"]
[Termination "Benek77 won by resignation"]

1. c4 {[%clk 0:03:01.9]} 1... Nf6 {[%clk 0:03:00.3]} 2. Nf3 {[%clk 0:03:02.5]}
2... g6 {[%clk 0:03:00.9]} 3. Nc3 {[%clk 0:03:02.8]} 3... Bg7 {[%clk 0:03:02.2]}
4. e4 {[%clk 0:03:03.3]} 4... d6 {[%clk 0:03:03.5]} 5. d4 {[%clk 0:03:03.9]}
5... O-O {[%clk 0:03:05]} 6. Be2 {[%clk 0:03:04.5]} 6... e5 {[%clk 0:03:05.9]}
7. d5 {[%clk 0:03:05.2]} 7... a5 {[%clk 0:03:06.6]} 8. Bg5 {[%clk 0:03:06.1]}
8... h6 {[%clk 0:03:03.5]} 9. Be3 {[%clk 0:03:06.6]} 9... Na6 {[%clk 0:03:05.1]}
10. Nd2 {[%clk 0:03:07.3]} 10... Nc5 {[%clk 0:03:03.2]} 11. O-O {[%clk
0:03:03.7]} 11... Nfd7 {[%clk 0:03:03.3]} 12. b3 {[%clk 0:03:00.8]} 12... f5
{[%clk 0:02:43.8]} 13. f3 {[%clk 0:03:01.6]} 13... h5 {[%clk 0:02:33.1]} 14. a3
{[%clk 0:03:00.1]} 14... Bf6 {[%clk 0:02:24.5]} 15. Rb1 {[%clk 0:02:32.7]} 15...
Bg5 {[%clk 0:02:25.4]} 16. Bf2 {[%clk 0:02:33.5]} 16... Bh4 {[%clk 0:02:26.1]}
17. g3 {[%clk 0:02:21.3]} 17... Bg5 {[%clk 0:02:25.5]} 18. b4 {[%clk 0:02:19.9]}
18... axb4 {[%clk 0:02:23.1]} 19. axb4 {[%clk 0:02:21.8]} 19... Na6 {[%clk
0:02:22.9]} 20. Rb2 {[%clk 0:01:57.5]} 20... f4 {[%clk 0:02:17.9]} 21. Kg2
{[%clk 0:01:53.8]} 21... Nf6 {[%clk 0:02:16.4]} 22. c5 {[%clk 0:01:38.9]} 22...
Qd7 {[%clk 0:02:15.8]} 23. Kh1 {[%clk 0:01:24.2]} 23... Qh3 {[%clk 0:02:08.9]}
24. Rg1 {[%clk 0:01:20.2]} 24... Bh6 {[%clk 0:02:03.9]} 25. Bf1 {[%clk
0:01:07.2]} 25... Qd7 {[%clk 0:02:00.2]} 26. c6 {[%clk 0:01:03.1]} 26... Qf7
{[%clk 0:01:53]} 27. Nc4 {[%clk 0:00:48.6]} 27... bxc6 {[%clk 0:01:42.5]} 28.
dxc6 {[%clk 0:00:49.2]} 28... Be6 {[%clk 0:01:44.1]} 29. Nd2 {[%clk 0:00:40.8]}
29... Kh7 {[%clk 0:01:30.2]} 30. Qb1 {[%clk 0:00:29.3]} 30... d5 {[%clk
0:01:08.7]} 31. exd5 {[%clk 0:00:24]} 31... Nxd5 {[%clk 0:01:10.6]} 32. Nce4
{[%clk 0:00:17.8]} 32... Bf5 {[%clk 0:01:06.6]} 33. Bd3 {[%clk 0:00:17.8]} 33...
fxg3 {[%clk 0:01:05.8]} 34. Rxg3 {[%clk 0:00:16.1]} 34... Nf4 {[%clk 0:00:56.2]}
35. Bc4 {[%clk 0:00:17.2]} 35... Qe7 {[%clk 0:00:51.6]} 36. b5 {[%clk
0:00:18.5]} 36... h4 {[%clk 0:00:38.7]} 37. Rg1 {[%clk 0:00:15.9]} 37... Nh3
{[%clk 0:00:39.9]} 38. Rg2 {[%clk 0:00:11.4]} 38... Bxd2 {[%clk 0:00:37.2]} 39.
Rxd2 {[%clk 0:00:11.1]} 39... Nc5 {[%clk 0:00:18.3]} 40. Bxc5 {[%clk 0:00:09.6]}
40... Qxc5 {[%clk 0:00:18.5]} 41. Nxc5 {[%clk 0:00:10.7]} 41... Bxb1 {[%clk
0:00:20.4]} 42. Bd5 {[%clk 0:00:09.8]} 42... Ra1 {[%clk 0:00:20.6]} 43. Rg4
{[%clk 0:00:05]} 43... Bf5+ {[%clk 0:00:19.8]} 44. Kg2 {[%clk 0:00:06]} 44...
Bxg4 {[%clk 0:00:19.5]} 45. fxg4 {[%clk 0:00:06.9]} 45... Nf4+ {[%clk
0:00:21.4]} 0-1